bitfinex/quotes_ETHUSD_20250107
["timestamp","ask_amount","ask_price","bid_price","bid_amount"]
[1736277192473,0.0075,3436.5,3436.4,0.0075]
[1736277193058,0.0075,3436.7,3436.2,0.0075]
[1736277193599,0.06827326,3436.6,3436.2,0.0075]
[1736277193801,0.7663,3436.8,3436.2,0.0075]
[1736277193802,0.0075,3436.5,3436.2,0.0075]
[1736277193995,0.0075,3436.3,3436.2,2.91767]
[1736277194161,0.0075,3436.3,3436.2,0.40442737]
[1736277194358,0.0075,3436.3,3436.2,3.31461737]
[1736277195667,0.0029,3436.9,3436.4,0.0075]
[1736277195868,0.0029,3436.9,3436.8,5.91718]
[1736277197088,0.0029,3436.9,3436.8,7.23838]
[1736277197392,0.0029,3436.9,3436.8,8.253208]
[1736277200493,0.0029,3436.9,3436.8,7.482008]
[1736277202199,0.0029,3436.9,3436.8,6.932008]
[1736277203085,0.0029,3436.9,3436.8,7.482008]
[1736277207715,0.0029,3436.9,3436.8,7.489508]
[1736277208993,0.0029,3436.9,3436.8,8.260608]
[1736277209590,0.0029,3436.9,3436.8,43.260608]
[1736277210054,0.0029,3436.9,3436.8,42.703108]
[1736277210402,0.0029,3436.9,3436.8,7.703108]
[1736277210905,0.0029,3436.9,3436.8,8.253108]
[1736277211227,0.0029,3436.9,3436.8,8.260608]
[1736277213227,0.0029,3436.9,3436.8,43.260608]
[1736277213526,0.9331028,3438.6,3438.4,2.90829]
[1736277213825,0.9406028,3438.6,3438.5,0.0075]
[1736277214031,0.9406028,3438.6,3438.5,2.91574]
[1736277214434,0.1764028,3438.6,3438.5,2.91574]
[1736277215129,0.0075,3438.5,3437.8,3.0]
[1736277215329,0.0075,3438.3,3437.8,2.90881]
[1736277215541,0.0075,3438.3,3437.4,6.7051581]
[1736277215542,0.0075,3438.3,3438.1,0.0075]
[1736277216119,0.0075,3438.3,3437.9,2.90875]
[1736277216510,0.0075,3438.3,3438.0,2.90864]
[1736277216914,0.81369052,3438.4,3438.1,0.0075]
[1736277217447,0.81369052,3438.4,3438.0,2.90864]
[1736277217448,0.1689028,3438.6,3437.5,3.67051581]
[1736277217643,0.1689028,3438.6,3437.6,0.74665739]
[1736277217845,0.1689028,3438.6,3438.1,2.90857]
[1736277218151,0.1689028,3438.6,3438.2,0.0075]
[1736277219822,0.8187,3438.5,3438.2,0.0075]
[1736277221526,0.8187,3438.5,3437.9,2.90874]
[1736277221732,0.8187,3438.5,3438.0,2.93769331]
[1736277221932,0.8187,3438.5,3438.0,2.90861]
[1736277222747,0.8187,3438.5,3438.1,0.0075]
[1736277224214,0.8187,3438.5,3438.1,2.90856]
[1736277225259,0.06662962,3438.4,3438.1,2.90856]
[1736277225564,0.06662962,3438.4,3438.0,0.0075]
[1736277225728,0.8187,3438.5,3438.0,0.0075]
[1736277225936,0.8187,3438.5,3438.2,0.0075]
[1736277226736,0.8187,3438.5,3438.3,0.0075]
[1736277227133,0.8187,3438.5,3438.0,0.02908446]
[1736277227354,0.8187,3438.5,3438.0,4.61361027]
[1736277227551,0.8187,3438.5,3438.1,0.0075]
[1736277229481,0.8187,3438.5,3437.6,0.74665739]
[1736277229689,0.8187,3438.5,3437.7,0.02908442]
[1736277229984,0.0075,3438.3,3437.7,2.90885]
[1736277230177,0.0075,3438.3,3437.8,0.0075]
[1736277230468,0.8187,3438.5,3437.8,0.0075]
[1736277230846,0.0075,3438.3,3437.8,0.0075]
[1736277231240,0.8187,3438.5,3437.8,0.0075]
[1736277231435,0.8187,3438.5,3438.0,0.0075]
[1736277231643,0.0075,3438.3,3438.0,0.0075]
[1736277231965,0.8187,3438.5,3438.0,0.0075]
[1736277232467,0.0075,3438.3,3438.0,0.0075]
[1736277233767,0.0075,3438.4,3438.0,0.0075]
[1736277233961,0.8187,3438.5,3438.0,0.44980638]
[1736277234186,0.8187,3438.5,3437.9,2.90871]
[1736277234521,0.06645125,3438.4,3438.0,0.0075]
[1736277234725,0.8187,3438.5,3438.0,0.0075]
[1736277234952,0.0075,3438.2,3438.0,2.94523477]
[1736277235149,0.8187,3438.5,3438.1,5.93766354]
[1736277235358,0.8187,3438.5,3438.3,0.0075]
[1736277235755,0.06645125,3438.4,3438.3,0.0075]
[1736277236145,0.8187,3438.5,3438.3,0.0075]
[1736277236473,0.06645125,3438.4,3438.3,0.0075]
[1736277239159,0.8187,3438.5,3438.3,0.0075]
[1736277239933,0.06645125,3438.4,3438.3,0.0075]
[1736277240275,0.8187,3438.5,3437.5,2.90903]
[1736277240473,3.72694,3438.5,3437.6,2.93807592]
[1736277240659,0.06612197,3438.4,3437.3,2.90923]
[1736277240982,0.06612197,3438.4,3437.8,3.0075]
[1736277241476,0.06612197,3438.4,3437.5,0.5575]
[1736277241775,0.06612197,3438.4,3437.8,2.9088]
[1736277242186,0.06612197,3438.4,3437.9,0.0075]
[1736277242378,0.06612197,3438.4,3438.0,2.90866]
[1736277242678,0.8187,3438.5,3438.0,2.90866]
[1736277242876,0.0075,3438.2,3438.0,2.90866]
[1736277243174,0.8187,3438.5,3438.0,2.90866]
[1736277243685,0.06580635,3438.4,3437.9,3.0]
[1736277243850,0.06580635,3438.4,3438.0,0.0075]
[1736277245342,0.06580635,3438.4,3437.9,5.90872]
[1736277245538,0.06580635,3438.4,3437.8,3.0]
[1736277245854,0.06580635,3438.4,3437.9,0.0075]
[1736277246378,0.06580635,3438.4,3437.0,4.73322197]
[1736277246379,0.0075,3438.2,3437.0,4.73322197]
[1736277246699,0.06584066,3438.1,3437.3,0.57908638]
[1736277246860,0.0075,3438.0,3437.5,0.55]
[1736277247062,0.07096957,3438.0,3437.8,0.0075]
[1736277247236,0.07096957,3438.0,3437.6,0.02908638]
[1736277247442,0.7989,3437.9,3437.2,1.2091763]
[1736277247638,0.07082584,3437.8,3437.2,1.2091763]
[1736277247860,0.07082584,3437.8,3437.1,1.38489719]
[1736277248060,0.0075,3437.8,3437.1,4.38489719]
[1736277248261,0.0075,3437.6,3437.1,1.38489719]
[1736277248449,0.0075,3437.4,3437.1,1.38489719]
[1736277248878,0.0075,3437.2,3437.1,1.38489719]
[1736277249534,0.7793,3437.7,3436.7,2.90974]
[1736277249535,3.68823,3437.7,3436.7,2.90974]
[1736277249791,0.06332584,3437.2,3436.8,2.9096]
[1736277250006,0.7793,3437.7,3436.9,0.0075]
[1736277250139,0.7793,3437.7,3436.9,2.91709]
[1736277250342,0.06332584,3437.6,3436.9,0.0075]
[1736277250593,0.06332584,3437.6,3436.8,0.02909315]
[1736277250594,0.06332584,3437.6,3436.8,0.0075]
[1736277250892,0.06332584,3437.6,3437.0,0.0075]
[1736277251578,0.06332584,3437.6,3436.6,0.83529329]
[1736277251763,0.06332584,3437.6,3436.9,3.0]
[1736277252344,0.06332584,3437.6,3436.7,0.0075]
[1736277252345,0.0075,3437.4,3436.7,0.0075]
[1736277252749,0.0075,3437.2,3436.9,0.0075]
[1736277253291,0.8315,3437.0,3436.6,3.0075]
[1736277253708,0.06332584,3436.9,3436.6,2.91734]
[1736277253845,0.0075,3436.8,3436.4,0.55]
[1736277254045,0.0075,3436.8,3436.4,1.28250638]
[1736277254575,0.0075,3436.9,3436.5,0.0075]
[1736277254770,0.0075,3436.9,3436.1,4.1194163]
[1736277255089,0.0075,3436.5,3436.1,1.2091763]
[1736277255583,0.0075,3436.5,3436.2,3.0075]
[1736277255960,0.0075,3436.5,3436.2,0.0075]
[1736277256258,0.0075,3436.3,3436.2,5.91767]
[1736277257001,0.0075,3436.5,3436.2,6.46767]
[1736277257203,0.7775,3437.2,3436.6,0.0075]
[1736277257408,0.7775,3437.2,3436.7,0.5575]
[1736277257783,1.20970576,3437.4,3436.9,0.5575]
[1736277257995,1.20970576,3437.4,3437.3,0.0075]
[1736277258375,0.0075,3437.4,3437.3,0.0075]
[1736277260885,0.7775,3437.5,3437.0,0.0075]
[1736277261206,0.7775,3437.5,3437.0,2.90947]
[1736277261403,0.7775,3437.5,3437.2,0.5575]
[1736277262318,0.7775,3437.5,3437.3,0.5575]
[1736277263772,0.0075,3438.0,3437.3,1.3667]
[1736277264005,0.0075,3438.0,3437.3,0.5575]
[1736277264627,0.0075,3437.8,3437.2,0.0075]
[1736277266431,0.0075,3437.8,3436.8,0.5575]
[1736277266596,0.0075,3437.8,3437.2,0.5575]
[1736277267047,0.0075,3437.8,3437.3,0.5575]
[1736277267195,0.7674,3437.9,3437.4,0.0075]
[1736277267401,0.7674,3437.9,3437.6,0.0075]
[1736277268133,0.7674,3437.9,3437.3,0.5575]
[1736277268929,0.06261135,3437.8,3437.3,0.5575]
[1736277269436,0.06261135,3437.8,3437.4,0.5575]
[1736277271864,0.06261135,3437.8,3437.7,2.91642]
[1736277272044,1.20970576,3438.4,3437.8,4.3168]
[1736277272246,1.20970576,3438.4,3438.3,2.91591]
[1736277272472,1.20970576,3438.4,3438.3,9.2459681]
[1736277272784,1.20970576,3438.4,3438.3,6.46591]
[1736277272949,1.21720576,3438.4,3438.3,7.68136881]
[1736277274163,0.0075,3438.4,3438.3,7.68136881]
[1736277275246,0.0075,3438.4,3438.3,4.77295881]
[1736277275473,0.0075,3438.4,3438.3,3.5575]
[1736277275682,0.7901,3438.3,3438.0,3.0]
[1736277276884,0.7901,3438.3,3438.1,0.5575]
[1736277277802,0.7901,3438.3,3437.5,6.93715]
[1736277277803,0.7901,3438.3,3437.8,3.5575]
[1736277277956,0.7901,3438.3,3438.0,3.5575]
[1736277278685,0.0075,3438.1,3438.0,3.5575]
[1736277279002,0.0075,3438.1,3438.0,3.0]
[1736277279567,0.7826,3438.3,3437.7,0.5575]
[1736277279568,0.0075,3438.2,3437.7,0.5575]
[1736277279793,0.0075,3438.2,3437.4,3.1267301]
[1736277279794,0.0075,3438.0,3437.4,3.255802]
[1736277280311,0.0075,3437.8,3437.5,3.0075]
[1736277280592,0.7826,3438.3,3437.5,3.0075]
[1736277280791,0.0075,3438.2,3437.5,3.0075]
[1736277280998,0.06859071,3438.2,3437.7,0.0075]
[1736277281394,2.97709071,3438.2,3437.5,0.55]
[1736277281596,0.8192,3438.1,3437.2,2.9093]
[1736277281893,0.88002949,3438.1,3437.3,0.5575]
[1736277282682,0.88002949,3438.1,3437.0,3.8267]
[1736277282683,3.78863949,3438.1,3437.0,0.8267]
[1736277282889,0.88002949,3438.1,3437.3,2.90923]
[1736277283092,0.88002949,3438.1,3437.4,0.0075]
[1736277283291,0.88002949,3438.1,3436.9,5.90951]
[1736277283292,0.0075,3437.8,3436.9,5.90951]
[1736277283484,0.0075,3437.6,3436.9,6.581741]
[1736277283666,0.0075,3437.6,3437.1,3.55]
[1736277283873,0.0075,3437.6,3437.3,3.0]
[1736277284086,0.0075,3437.6,3437.1,0.55]
[1736277284280,0.0075,3437.4,3437.2,0.0075]
[1736277284689,0.0075,3437.4,3437.2,3.0075]
[1736277285005,0.0075,3437.6,3437.2,3.0075]
[1736277285164,0.06836386,3437.3,3437.2,3.0075]
[1736277285507,0.0075,3437.3,3437.2,3.0075]
[1736277285701,0.06836386,3437.3,3437.2,3.7214151]
[1736277285892,0.0075,3437.3,3437.2,3.7214151]
[1736277287287,0.0075,3437.3,3437.2,3.6307551]
[1736277287491,0.7756,3437.7,3437.2,1.2714151]
[1736277287702,0.7756,3437.7,3437.4,0.0075]
[1736277287862,0.06086386,3437.6,3437.4,0.0075]
[1736277288201,0.0075,3437.5,3437.4,0.0075]
[1736277288380,0.06836386,3437.5,3437.4,0.0075]
[1736277290771,0.7829,3438.1,3437.5,0.0075]
[1736277291068,0.7829,3438.1,3437.3,0.0075]
[1736277291380,0.06086386,3438.0,3437.3,2.91675]
[1736277292108,0.7829,3438.1,3437.3,2.91675]
[1736277292306,0.0075,3437.8,3437.3,2.91675]
[1736277292480,0.06080197,3437.7,3437.3,2.91675]
[1736277292688,0.0075,3437.6,3437.3,2.91675]
[1736277292889,0.7829,3438.1,3437.3,2.91675]
[1736277292890,0.06080197,3437.5,3437.3,2.91675]
[1736277293093,0.0075,3437.4,3437.3,3.46675]
[1736277293409,0.7829,3438.1,3437.3,3.46675]
[1736277293606,0.06830197,3437.4,3437.3,3.46675]
[1736277293812,0.0075,3437.4,3437.3,3.46675]
[1736277296510,0.0075,3437.4,3437.3,0.5575]
[1736277296804,0.06830197,3437.4,3437.3,0.5575]
[1736277297211,0.0075,3437.3,3436.8,0.7935]
[1736277297410,0.0075,3437.3,3437.0,3.0]
[1736277297614,0.0075,3437.3,3436.6,1.2091763]
[1736277297615,0.0075,3437.1,3436.6,1.2091763]
[1736277297776,0.0075,3436.9,3436.5,4.1191063]
[1736277298182,0.0075,3436.9,3436.6,0.5575]
[1736277298183,0.0075,3436.7,3436.6,0.5575]
[1736277298415,0.0075,3436.7,3436.5,1.2091763]
[1736277298922,0.0656237,3436.6,3436.5,1.2091763]
[1736277299214,0.0656237,3436.6,3436.4,3.0]
[1736277299215,0.8212237,3436.6,3436.4,3.0]
[1736277299415,0.0075,3436.5,3435.9,4.1195763]
[1736277299627,0.0656237,3436.5,3435.9,1.2091763]
[1736277299977,0.0075,3436.3,3435.9,1.2091763]
[1736277300582,0.0075,3436.1,3435.9,1.2091763]
[1736277300780,0.0075,3436.1,3435.6,2.91064]
[1736277300980,0.0075,3436.1,3435.4,3.0]
[1736277301281,0.0075,3435.9,3435.6,3.0]
[1736277302117,0.0075,3436.3,3435.7,0.0075]
[1736277302297,0.05768307,3436.2,3435.7,0.0075]
[1736277302494,0.0075,3436.1,3435.7,0.0075]
[1736277302708,0.0075,3436.1,3435.4,1.11684262]
[1736277302709,0.0075,3436.1,3435.4,4.11684262]
[1736277302907,0.0075,3435.9,3435.4,4.11684262]
[1736277303110,0.0075,3435.9,3435.5,0.5575]
[1736277303318,0.0075,3435.9,3435.5,0.0075]
[1736277303624,0.0075,3435.7,3435.1,2.91111]
[1736277303922,0.0075,3435.5,3435.1,3.58636383]
[1736277304134,0.0075,3435.3,3435.2,3.0075]
[1736277304725,0.06481804,3435.3,3435.2,3.0075]
[1736277305331,0.06481804,3435.3,3434.7,0.5575]
[1736277305542,0.0075,3435.3,3435.1,2.91108]
[1736277305889,0.0075,3435.3,3435.2,3.0075]
[1736277308430,0.0075,3435.3,3435.2,0.0075]
[1736277308810,0.0075,3435.3,3434.9,0.55]
[1736277309001,0.06481804,3435.3,3434.6,0.8284]
[1736277309374,0.06481804,3435.3,3434.9,0.5575]
[1736277309735,29.15061804,3435.3,3434.9,0.0075]
[1736277310452,29.15061804,3435.3,3434.7,3.46143]
[1736277310632,29.15061804,3435.3,3434.6,3.0]
[1736277310633,29.15061804,3435.3,3434.8,2.91136]
[1736277310801,29.15061804,3435.3,3434.9,2.91125]
[1736277310999,29.15061804,3435.3,3435.1,3.0075]
[1736277311497,29.15061804,3435.3,3434.7,0.0075]
[1736277311704,29.15061804,3435.3,3434.4,3.0]
[1736277311705,29.15061804,3435.3,3434.4,0.55]
[1736277311901,29.15061804,3435.3,3434.6,3.46151]
[1736277312351,29.15061804,3435.3,3434.7,3.0075]
[1736277313306,29.15061804,3435.3,3434.7,2.91892]
[1736277316106,29.15061804,3435.3,3434.6,3.0]
[1736277316430,29.15061804,3435.3,3434.7,0.0075]
[1736277316947,29.15061804,3435.3,3434.6,2.91151]
[1736277317153,0.8287,3435.2,3434.2,2.91184]
[1736277317462,3.66474691,3435.2,3434.0,3.67452]
[1736277317646,0.88468881,3435.2,3434.5,2.91162]
[1736277317947,0.05598881,3435.2,3435.1,3.46112]
[1736277318110,29.0858,3435.3,3435.2,0.0075]
[1736277318313,29.14917856,3435.3,3435.2,3.46853]
[1736277318715,29.14917856,3435.3,3435.2,6.46853]
[1736277318915,29.14917856,3435.3,3435.2,7.482761]
[1736277319449,29.14917856,3435.3,3435.2,3.0]
[1736277319654,0.0075,3435.2,3434.8,3.0]
[1736277319828,0.0075,3435.2,3435.0,3.0]
[1736277320027,29.93907856,3435.3,3434.8,3.55]
[1736277320028,0.05390057,3435.1,3434.8,3.55]
[1736277320350,29.0858,3435.3,3435.2,2.91103]
[1736277320524,29.14549446,3435.3,3435.2,7.80897881]
[1736277323130,17.02417334,3435.3,3435.2,11.42303691]
[1736277323431,10.03800568,3435.3,3435.2,46.42303691]
[1736277323632,2.68991755,3435.3,3435.2,46.42303691]
[1736277323958,2.63772309,3435.3,3435.2,46.42303691]
[1736277324259,2.63772309,3435.3,3435.2,46.65203691]
[1736277324625,0.7866,3437.1,3436.4,0.8319]
[1736277324824,0.7866,3437.4,3436.8,0.55]
[1736277325026,0.7866,3437.4,3436.5,3.0]
[1736277325027,0.05123692,3437.0,3436.5,3.0]
[1736277325350,0.05873692,3436.9,3436.2,3.0]
[1736277325549,0.7866,3436.8,3436.3,2.91009]
[1736277325755,0.05873692,3436.7,3436.3,2.91009]
[1736277326068,0.0075,3436.7,3436.4,3.55]
[1736277326248,0.0075,3436.7,3436.3,0.55]
[1736277326568,0.0075,3436.5,3436.3,0.55]
[1736277326879,0.0075,3436.5,3436.3,3.55]
[1736277327046,0.0075,3436.7,3436.3,3.55]
[1736277327561,0.0075,3436.5,3436.2,3.55]
[1736277327924,0.0075,3436.5,3436.2,3.46018]
[1736277328351,0.0075,3436.7,3436.2,3.46018]
[1736277328552,0.0075,3436.7,3436.0,3.46033]
[1736277329066,0.0075,3436.5,3435.4,0.7632]
[1736277329264,0.0075,3436.3,3435.4,0.7632]
[1736277329567,0.0075,3436.1,3435.1,4.8834463]
[1736277329773,0.0075,3436.1,3435.4,2.91079]
[1736277329927,0.0075,3436.1,3435.5,0.5575]
[1736277330138,0.0075,3436.3,3435.7,3.5575]
[1736277330499,0.0075,3436.1,3435.1,0.7632]
[1736277330646,0.0075,3436.1,3435.4,2.91083]
[1736277330851,0.0075,3436.1,3435.5,0.5575]
[1736277331052,0.0075,3435.9,3435.5,3.5575]
[1736277331575,0.0075,3435.7,3435.5,3.5575]
[1736277332275,0.0075,3436.3,3435.5,3.5575]
[1736277332472,0.0075,3436.3,3435.5,0.0075]
[1736277332708,0.0075,3436.1,3435.4,0.5575]
[1736277333334,0.0075,3435.9,3435.4,0.5575]
[1736277333933,1.1268406,3436.2,3435.4,0.5575]
[1736277333934,0.0075,3435.7,3435.4,0.5575]
[1736277334230,0.0075,3435.7,3435.4,0.0075]
[1736277334393,0.0075,3436.1,3435.6,0.0075]
[1736277335137,0.0075,3436.1,3435.3,3.5575]
[1736277335432,0.0075,3436.1,3435.3,0.5575]
[1736277335637,0.0075,3436.1,3435.5,0.0075]
[1736277335844,0.7781,3436.2,3435.5,0.0075]
[1736277336142,1.20970576,3437.2,3436.0,0.5575]
[1736277336307,1.96890576,3437.1,3436.3,0.0075]
[1736277336485,0.0075,3437.0,3436.3,0.0075]
[1736277339010,0.0075,3437.0,3436.2,0.5575]
[1736277339213,0.7669,3436.9,3436.2,0.55]
[1736277339448,0.0075,3436.8,3435.8,2.91049]
[1736277339611,0.7669,3436.7,3435.9,3.0]
[1736277340224,0.0075,3436.6,3435.5,1.12915581]
[1736277340443,0.0075,3436.6,3435.7,2.91061]
[1736277340654,0.7669,3436.7,3436.0,0.55]
[1736277340945,0.7669,3436.7,3435.8,3.02910196]
[1736277341438,0.7669,3436.7,3435.5,0.7954]
[1736277341439,0.7669,3436.7,3436.2,3.55]
[1736277342649,0.7703,3437.0,3436.6,0.0075]
[1736277342790,0.7745,3437.3,3436.8,3.46717]
[1736277343448,0.0075,3437.2,3436.7,0.5575]
[1736277343809,0.05129218,3437.1,3436.7,0.5575]
[1736277344011,0.0075,3437.0,3436.7,1.18514828]
[1736277344603,0.0075,3436.8,3436.7,1.18514828]
[1736277345187,0.0075,3437.2,3436.2,3.73806]
[1736277345444,0.8323,3437.1,3436.1,0.229]
[1736277345744,0.0075,3437.0,3436.3,2.91007]
[1736277345924,0.0075,3437.0,3436.4,0.58659712]
[1736277346107,0.8323,3437.1,3436.4,0.95916383]
[1736277346444,0.8323,3437.1,3436.4,3.49660712]
[1736277346622,0.8323,3437.1,3436.4,3.46751]
[1736277346822,0.8323,3437.1,3436.4,0.55]
[1736277347852,0.05129218,3437.0,3436.4,0.55]
[1736277349434,0.05129218,3437.0,3436.5,0.02909579]
[1736277349737,0.05129218,3437.0,3436.4,3.55]
[1736277349897,0.05129218,3437.0,3436.4,4.196007]
[1736277350932,0.05129218,3437.0,3436.4,1.196007]
[1736277351210,0.05129218,3437.0,3436.5,0.02909578]
[1736277351428,0.05129218,3437.0,3436.6,2.90985]
[1736277351718,0.768,3437.4,3436.9,0.0075]
[1736277351922,0.05924778,3437.3,3437.1,0.0075]
[1736277352244,0.0075,3437.3,3437.2,3.5575]
[1736277352449,0.7778,3437.8,3437.3,0.0075]
[1736277352649,0.7778,3437.8,3437.5,0.0075]
[1736277352967,0.05975157,3437.7,3437.5,0.0075]
[1736277353611,0.05975157,3437.7,3437.2,0.5575]
[1736277353812,0.0075,3437.7,3437.2,0.5575]
[1736277355415,0.0075,3437.7,3437.1,0.5575]
[1736277355741,0.0075,3437.7,3437.1,3.4669]
[1736277355927,0.0075,3437.7,3437.3,0.0075]
[1736277356136,0.05241716,3437.6,3437.3,0.5575]
[1736277356343,0.0075,3437.5,3437.3,0.5575]
[1736277356509,0.0075,3437.3,3437.2,0.5575]
[1736277356714,0.0075,3437.3,3437.2,0.58658951]
[1736277356913,0.0075,3437.3,3437.2,1.35683246]
[1736277357429,0.0075,3437.7,3437.2,1.32774295]
[1736277358430,0.0075,3437.7,3437.2,0.5575]
[1736277359026,0.0075,3437.5,3437.2,0.5575]
[1736277359657,0.0075,3437.3,3437.2,0.5575]
[1736277360215,0.7778,3437.8,3437.2,0.5575]
[1736277360415,0.0075,3437.7,3437.1,0.5575]
[1736277360654,0.06038636,3437.7,3437.1,0.5575]
[1736277361331,0.06038636,3437.7,3437.3,0.0075]
[1736277361535,0.06038636,3437.7,3437.3,3.5575]
[1736277362259,0.06038636,3437.7,3436.8,2.90963]
[1736277362420,0.0075,3437.3,3436.6,2.90982]
[1736277362956,0.0075,3437.3,3436.3,2.2478763]
[1736277362957,0.8212,3437.4,3436.9,0.55]
[1736277363153,0.05285186,3437.3,3436.9,0.57909302]
[1736277363320,0.05285186,3437.3,3436.3,5.2478763]
[1736277363516,0.8212,3437.4,3436.7,0.55]
[1736277363722,0.05285186,3437.3,3436.7,0.55]
[1736277363918,0.05285186,3437.3,3436.3,2.2478763]
[1736277363919,0.0075,3437.1,3436.3,6.71979]
[1736277364262,0.0075,3437.1,3436.4,0.0075]
[1736277364556,3.285608,3437.1,3436.3,3.0]
[1736277364762,0.0075,3436.9,3436.3,3.0]
[1736277365115,0.05255517,3436.8,3436.3,3.0]
[1736277365454,0.05255517,3436.8,3435.9,35.0]
[1736277365455,0.0075,3436.5,3435.9,1.2091763]
[1736277365658,0.0075,3436.5,3435.9,4.2091763]
[1736277365857,0.0075,3436.5,3435.9,5.20319713]
[1736277366164,0.0075,3436.3,3435.9,1.2091763]
[1736277366545,0.0075,3436.4,3435.9,1.2091763]
[1736277366749,0.0075,3436.4,3436.0,0.55]
[1736277366945,0.0075,3436.2,3436.0,0.55]
[1736277367561,0.0075,3436.5,3436.1,0.0075]
[1736277367960,0.0075,3436.3,3436.1,0.0075]
[1736277368121,0.0075,3436.3,3435.9,0.0075]
[1736277369050,0.0075,3436.5,3435.8,0.0075]
[1736277369565,0.0075,3436.3,3435.8,0.0075]
[1736277370123,0.0075,3436.5,3435.8,0.0075]
[1736277370324,0.0075,3436.3,3435.8,0.0075]
[1736277371472,0.0075,3436.3,3436.0,0.0075]
[1736277372249,0.0075,3436.3,3435.8,0.0075]
[1736277372448,0.0075,3436.3,3436.0,0.0075]
[1736277373070,0.0075,3436.1,3436.0,0.0075]
[1736277373317,0.0075,3436.1,3434.9,5.34299482]
[1736277373318,0.0075,3436.1,3435.0,1.82375197]
[1736277373487,0.0075,3435.9,3435.3,2.91095]
[1736277373655,0.0075,3435.9,3435.4,0.02910559]
[1736277374002,0.8591991,3436.0,3435.4,3.02910559]
[1736277374003,0.0075,3435.7,3435.4,3.02910559]
[1736277374355,0.0075,3435.9,3435.5,0.5575]
[1736277374951,0.822,3436.3,3435.7,2.9181]
[1736277375154,0.822,3436.3,3435.8,0.55]
[1736277375413,0.0075,3436.2,3435.7,0.0075]
[1736277376194,0.0075,3436.0,3435.2,6.45742631]
[1736277376354,0.0075,3436.0,3435.3,5.8611894]
[1736277376555,0.0075,3436.0,3435.4,3.5575]
[1736277377069,0.0075,3436.0,3435.4,0.5575]
[1736277377275,0.0075,3436.0,3435.4,3.5575]
[1736277377473,0.0075,3436.0,3435.3,0.5575]
[1736277377672,3.73228,3436.1,3435.3,0.5575]
[1736277377673,0.05115412,3435.9,3435.3,0.5575]
[1736277377973,0.822,3436.1,3435.5,0.5575]
[1736277378197,0.05865412,3436.0,3435.5,0.5575]
[1736277378400,0.05865412,3436.0,3435.5,0.0075]
[1736277378715,0.05865412,3436.0,3435.4,0.0075]
[1736277379782,0.05115412,3436.0,3435.5,2.91077]
[1736277380114,0.05115412,3436.0,3435.7,0.0075]
[1736277381262,0.822,3436.1,3435.7,0.0075]
[1736277381715,0.05093317,3436.0,3435.7,35.0075]
[1736277381880,0.05093317,3436.0,3435.7,0.0075]
[1736277382080,0.822,3436.1,3435.7,0.0075]
[1736277382285,0.0075,3435.8,3435.7,0.0075]
[1736277382501,0.822,3436.1,3435.9,0.0075]
[1736277382815,0.8213,3436.6,3435.9,0.0075]
[1736277384087,2.90994,3436.5,3435.7,0.0075]
[1736277384466,0.8213,3436.6,3435.6,0.55]
[1736277384722,0.0075,3436.2,3435.4,3.02910431]
[1736277385003,0.0075,3436.2,3435.3,2.91094]
[1736277385004,0.8202,3436.1,3435.3,0.5575]
[1736277385208,1.19324,3436.1,3434.9,1.9777763]
[1736277385364,0.8202,3436.0,3434.9,1.9777763]
[1736277387665,2.7800581,3435.4,3434.5,1.2091763]
[1736277387904,0.229,3435.9,3434.5,1.2091763]
[1736277387905,0.0075,3435.0,3434.5,1.2091763]
[1736277388323,0.0075,3434.8,3434.5,1.2091763]
[1736277388521,0.8002,3434.6,3434.5,1.2091763]
[1736277388923,0.85033887,3434.6,3433.5,1.9848763]
[1736277389132,0.0075,3434.3,3433.5,1.2091763]
[1736277389449,3.72414,3434.1,3433.5,1.2091763]
[1736277389786,0.0075,3433.9,3433.5,1.2091763]
[1736277389998,0.0075,3433.7,3433.6,0.0975279]
[1736277390199,2.91224,3433.8,3433.5,1.2091763]
[1736277390397,2.7800581,3434.2,3433.0,0.0975279]
[1736277390398,2.7875581,3433.6,3433.0,0.0975279]
[1736277390686,2.7800581,3433.3,3432.7,0.0975279]
[1736277390910,0.04839784,3433.5,3432.7,0.0975279]
[1736277391112,0.04804528,3433.2,3432.7,0.0975279]
[1736277391312,2.91268,3433.3,3432.7,0.0975279]
[1736277391632,0.04802454,3433.2,3432.7,0.0975279]
[1736277391835,0.04802454,3433.2,3432.9,0.0975279]
[1736277391999,0.04802454,3433.2,3433.1,0.55]
[1736277392333,1.20970576,3434.4,3433.7,0.0075]
[1736277392631,2.91238,3433.7,3433.1,0.0975279]
[1736277392789,2.7800581,3433.9,3433.1,0.0975279]
[1736277392988,2.7800581,3433.9,3433.2,0.0975279]
[1736277392989,0.7554,3433.4,3433.2,0.0975279]
[1736277393224,0.7554,3433.4,3433.0,0.0075]
[1736277393424,0.04538042,3433.3,3433.0,0.0075]
[1736277393630,3.60814227,3433.3,3432.7,0.0975279]
[1736277393840,0.69547227,3433.3,3432.7,0.0975279]
[1736277394143,3.47553037,3433.3,3432.5,0.0975279]
[1736277394425,2.91289,3433.1,3432.8,0.0975279]
[1736277394629,2.91289,3433.1,3432.6,0.0975279]
[1736277394828,0.04492361,3433.0,3432.8,0.0975279]
[1736277395183,0.04492361,3433.0,3432.9,0.0075]
[1736277395584,0.84032361,3433.0,3432.9,0.0075]
[1736277396405,0.84032361,3433.0,3432.7,0.0075]
[1736277396906,0.37532136,3432.9,3432.7,0.0075]
[1736277397426,2.91258,3433.4,3432.8,0.0975279]
[1736277397634,0.7954,3433.3,3432.9,0.0075]
[1736277399415,0.7954,3433.3,3432.8,0.0975279]
[1736277400029,0.7954,3433.3,3433.1,0.2488]
[1736277400193,0.7954,3433.3,3433.2,0.0075]
[1736277400592,0.7695,3434.0,3433.4,0.0075]